Cogmind - Beta 13 @@@ ROGUE MODE // 2024.04.11 @ 14:05:07 Player: Nathan Oldroyd Result: Destroyed by G-47 Trooper via exploding Compression Vault Performance ------------- Evolutions (2) 1000 Regions Visited (5) 1000 Robots Destroyed (33) 165 Value Destroyed (690) 690 Prototype IDs (3) 60 Alien Tech Used (0) 0 Bonus (33) 33 TOTAL SCORE: 2948 Bonus ------- High Alert Combat Kills 33 Cogmind --------- Core Integrity 0/550 Matter 29/300 Energy 100/100 System Corruption 2% Temperature Cool (0) Movement Core (100) Ox1 Location -8/Storage Parts ------- > --- POWER (2) -------- (None) > --- PROPULSION (4) --- (None) > --- UTILITY (3) ------ Visual Processing Unit Improved Targeting Computer > --- WEAPON (2) ------- Flak Cannon > --- INVENTORY (5) ---- Improved Signal Interpreter Guided EMP Blaster Peak State ------------ > --- POWER ------------ Ion Engine > --- PROPULSION ------- Flight Unit Flight Unit Flight Unit Flight Unit > --- UTILITY ---------- Small Storage Unit Improved Targeting Computer Propulsion Shielding > --- WEAPON ----------- Guided EMP Blaster > --- INVENTORY -------- Light Ion Engine Flight Unit Flight Unit Visual Processing Unit Improved Signal Interpreter Advanced Beam Cannon Assault Cannon [Rating: 22] Favorites ----------- Power Ion Engine Engine Ion Engine Propulsion Flight Unit Treads Light Treads Leg Aluminum Leg Wheel Compact Wheel Flight Unit Flight Unit Utility Huge Storage Unit Device Sensor Array Storage Huge Storage Unit Processor Improved Targeting Computer Protection Propulsion Shielding Weapon Heavy EM Pulse Gun Energy Gun Heavy EM Pulse Gun Energy Cannon Advanced Beam Cannon Ballistic Gun Light Assault Rifle Ballistic Cannon Assault Cannon Launcher Guided EMP Blaster Build | -11 -10 -9 -9 -8 -8 ------- Run | Yrd Mat Mat Min Mat Sto Slots Evolved 4 | . . 2 . 2 . Power 1 | . . . . 1 . Propulsion 2 | . . 2 . . . Utility 1 | . . . . 1 . Weapon . | . . . . . . Parts Attached 44 | 6 7 17 . 1 13 Power 6 | 1 . 3 . . 2 Engine 6 | 1 . 3 . . 2 Core . | . . . . . . Reactor . | . . . . . . Propulsion 15 | 2 2 7 . . 4 Treads 3 | . . 3 . . . Leg 2 | 2 . . . . . Wheel 2 | . 2 . . . . Hover . | . . . . . . Flight 8 | . . 4 . . 4 Utility 8 | 1 3 2 . 1 1 Device 1 | . 1 . . . . Storage 4 | 1 2 1 . . . Processor 2 | . . 1 . . 1 Hackware . | . . . . . . Protection 1 | . . . . 1 . Artifact . | . . . . . . Weapon 15 | 2 2 5 . . 6 Energy Gun 4 | . 2 2 . . . Energy Cannon 2 | . . 2 . . . Ballistic Gun 3 | 2 . 1 . . . Ballistic Cannon 3 | . . . . . 3 Launcher 3 | . . . . . 3 Special Weapon . | . . . . . . Impact Weapon . | . . . . . . Slashing Weapon . | . . . . . . Piercing Weapon . | . . . . . . Special Melee Weapon . | . . . . . . Unidentified Prototypes 3 | . . 2 . . 1 Parts Lost 21 | . . 8 . . 13 Power 3 | . . 1 . . 2 Propulsion 12 | . . 4 . . 8 Utility 2 | . . . . . 2 Weapon 4 | . . 3 . . 1 Highest Loss Streak 10 | . . 4 . . 10 To Critical Strikes . | . . . . . . Average Slot Usage (%) 82 | . 93 80 88 81 62 Engine 11 | . 14 10 11 9 6 Treads 3 | . . 8 . . . Leg 2 | . 7 . . . . Wheel 14 | . 20 16 . . . Flight 6 | . . 2 44 36 24 Device 3 | . 7 1 . . . Storage 11 | . 14 11 11 9 5 Processor 6 | . . 9 11 9 13 Energy Gun 9 | . 3 19 . . . Energy Cannon 1 | . . . 11 9 3 Ballistic Gun 9 | . 24 . . . . Naked Turns . | . . . . . . Heaviest Build 92 | 12 92 92 14 15 16 Greatest Support 60 | 20 26 60 16 16 16 Greatest Overweight (x) 5 | 3 3 5 . . 1 Average Overweight (x) 1 | . 2 2 . . . Largest Inventory Capacity 25 | 8 25 25 8 8 8 Average Capacity 18 | 7 21 24 8 8 6 Most Carried 24 | 6 15 24 4 5 8 Average Carried 11 | 4 9 19 4 3 5 Final Capacity 25 | 8 25 8 8 8 5 Final Carried 15 | 6 15 4 4 5 3 Class Distribution -------------------- 85% | Mutant 14% | Scavenger-Sprinter Dominant Class ---------------- Mutant | -10/Materials Mutant | -9/Materials Scavenger-Sprinter | -9/Mines Scavenger-Sprinter | -8/Materials Mutant | -8/Storage Resources | -11 -10 -9 -9 -8 -8 ----------- Run | Yrd Mat Mat Min Mat Sto Matter Collected 557 | 268 74 174 . . 41 Remotely . | . . . . . . Salvage Created 909 | 24 105 609 . . 171 Parts 65 | 1 2 47 . . 15 Haulers Intercepted 1 | . . 1 . . . Recyclers Shooed . | . . . . . . Parts Field Recycled . | . . . . . . Retrieved Matter . | . . . . . . Parts Self-Destructed . | . . . . . . Prevented . | . . . . . . Kills | -11 -10 -9 -9 -8 -8 ------- Run | Yrd Mat Mat Min Mat Sto Combat Hostiles Destroyed 29 | . 2 16 . . 11 Guns 15 | . 2 13 . . . Cannons 4 | . . . . . 4 AOE 10 | . . 3 . . 7 Classes Destroyed 7 | 1 1 5 . . . Worker 1 | . . 1 . . . Tunneler 1 | 1 . . . . . Hauler 1 | . . 1 . . . Mechanic 1 | . . 1 . . . Swarmer 18 | . . 10 . . 8 Grunt 4 | . 2 1 . . 1 Sentry 7 | . . 5 . . 2 Best Kill Streak 6 | 1 1 6 . . 4 Combat Bots Only 5 | . 1 5 . . 4 Max Kills in Single Turn 4 | 1 1 2 . . 4 Gunslinging . | . . . . . . Exploded 4 | . . 2 . . 4 Melee . | . . . . . . Uniques/NPCs Destroyed . | . . . . . . Combat | -11 -10 -9 -9 -8 -8 -------- Run | Yrd Mat Mat Min Mat Sto Hostile Shots Fired 216 | . 14 77 1 6 118 Missed 58 | . 3 10 1 2 42 Damage Taken 2471 | . 137 820 . 65 1449 Core 765 | . 34 163 . 22 546 Absorbed by Shields . | . . . . . . Redirected to Shielding 15 | . . . . 9 6 Core Remaining (%) 81 | 100 86 . 59 . . Volleys Fired 85 | 4 12 36 . . 33 Largest 2 | 2 2 2 . . 2 Hottest 101 | 40 40 90 . . 101 Shots Fired 137 | 8 24 71 . . 34 Gun 103 | 8 24 71 . . . Cannon 30 | . . . . . 30 Launcher 4 | . . . . . 4 Special . | . . . . . . Kinetic 67 | 8 24 6 . . 29 Thermal 1 | . . . . . 1 Explosive 1 | . . . . . 1 Electromagnetic 68 | . . 65 . . 3 Robot Hit Streak 14 | 5 8 14 . . 10 Robot Miss Streak 5 | 1 2 4 . . 5 Penetration Max . | . . . . . . Secondary Targets 1 | . . 1 . . . Max Gunslinging Chain 1 | . . 1 . . . Shots Hit Robots 88 | 7 16 46 . . 19 Core Hits 57 | 2 7 26 . . 22 Critical Kills 1 | . 1 . . . . Critical Parts Destroyed 1 | 1 . . . . . Critical Strikes 3 | 1 1 1 . . . Destroy 2 | 1 1 . . . . Corrupt 1 | . . 1 . . . Melee Attacks . | . . . . . . Impact . | . . . . . . Slashing . | . . . . . . Piercing . | . . . . . . Sneak Attacks . | . . . . . . Combat Hostiles . | . . . . . . Follow-up Attacks . | . . . . . . Damage Inflicted 1826 | 58 129 869 . . 770 Guns 815 | 58 118 639 . . . Cannons 369 | . . . . . 369 Explosions 631 | . . 230 . . 401 Melee . | . . . . . . Ramming 11 | . 11 . . . . Kinetic 615 | 58 118 70 . . 369 Thermal 257 | . . 230 . . 27 Explosive 200 | . . . . . 200 Electromagnetic 743 | . . 569 . . 174 Impact . | . . . . . . Slashing . | . . . . . . Piercing . | . . . . . . Highest Corruption 2 | . . . . . 2 Average Corruption 2 | . . . . . 2 Corruption Purged . | . . . . . . Corruption Blocked . | . . . . . . Effects 2 | . . . . . 2 Matter Fused 1 | . . . . . 1 Data Loss (minor) 1 | . . . . . 1 Overload Shots . | . . . . . . Overflow Damage 87 | . . 39 . . 48 Projectiles 8 | . . . . . 8 Explosions 79 | . . 39 . . 40 Melee . | . . . . . . Knockbacks 9 | . . . . . 9 Impact . | . . . . . . Kinetic 9 | . . . . . 9 Secondary . | . . . . . . Self-Inflicted Damage 107 | . 5 42 . . 60 Shots 4 | . . 2 . . 2 Rammed 1 | . 1 . . . . Targets Rammed 1 | . 1 . . . . Kicked . | . . . . . . Crushed . | . . . . . . Highest Temperature 286 | . 16 286 . . 66 Average Temperature 76 | . 7 107 . . 19 Received Heat Transfer 672 | . 90 222 . . 360 Effects 2 | . . 2 . . . Energy Bleed 2 | . . 2 . . . Siege Activations . | . . . . . . Robots Corrupted . | . . . . . . Combat Hostiles . | . . . . . . Parts Fried 3 | . . 2 . . 1 Impact Corruptions . | . . . . . . Robots Melted . | . . . . . . Combat Hostiles . | . . . . . . Parts Melted . | . . . . . . Heat Transferred 300 | . . 250 . . 50 Parts Sabotaged . | . . . . . . Parts Stolen . | . . . . . . Parts Stripped . | . . . . . . Power Chain Reactions 3 | . . 2 . . 1 Alert | -11 -10 -9 -9 -8 -8 ------- Run | Yrd Mat Mat Min Mat Sto Peak Influence 496 | 5 68 246 95 52 496 Initial 95 | . 3 . 95 37 21 Average 90 | 1 26 94 95 39 267 Maximum Alert Level 2 | . . 1 . . 2 Low Security (%) 83 | 100 100 86 100 100 33 Level 1 12 | . . 13 . . 47 Level 2 3 | . . . . . 19 Level 3 . | . . . . . . Level 4 . | . . . . . . Level 5 . | . . . . . . High Security . | . . . . . . Max Security . | . . . . . . Squads Dispatched 6 | . . 2 . . 4 Investigation 2 | . . . . . 2 Extermination . | . . . . . . Reinforcement 4 | . . 2 . . 2 Assault . | . . . . . . Garrison . | . . . . . . Intercept . | . . . . . . Searches Triggered . | . . . . . . Construction Impeded 1 | . . 1 . . . Haulers Reinforced . | . . . . . . Active Scanning Responses . | . . . . . . Cargo Convoy Interrupts . | . . . . . . Stealth | -11 -10 -9 -9 -8 -8 --------- Run | Yrd Mat Mat Min Mat Sto Distress Signals 2 | . . . . 1 1 Communications Jammed . | . . . . . . Distress Signals . | . . . . . . Times Spotted 57 | . 3 18 2 5 29 Peak Tracking Total 16 | . 3 6 2 6 16 Tactical Retreats 6 | . . 1 . . 5 Traps | -11 -10 -9 -9 -8 -8 ------- Run | Yrd Mat Mat Min Mat Sto Traps Triggered . | . . . . . . Indirectly . | . . . . . . Trap Hack Attempts . | . . . . . . Triggered . | . . . . . . Disarmed . | . . . . . . Reprogrammed . | . . . . . . Reused . | . . . . . . Traps Extracted . | . . . . . . Installed . | . . . . . . Triggered . | . . . . . . Machines | -11 -10 -9 -9 -8 -8 ---------- Run | Yrd Mat Mat Min Mat Sto Machines Disabled 1 | . . . . . 1 Max in Single Turn 1 | . . . . . 1 Machines Repaired . | . . . . . . Machines Dismantled . | . . . . . . Machines Sabotaged . | . . . . . . Overloaded Fab Kills . | . . . . . . Hacking | -11 -10 -9 -9 -8 -8 --------- Run | Yrd Mat Mat Min Mat Sto Machines Accessed 4 | . 1 . . . 3 Terminals 4 | . 1 . . . 3 Fabricators . | . . . . . . Repair Stations . | . . . . . . Recycling Units . | . . . . . . Scanalyzers . | . . . . . . Garrison Access . | . . . . . . Total Hacks 8 | . 1 . . . 7 Successful 2 | . . . . . 2 Failed 6 | . 1 . . . 5 Catastrophic 2 | . . . . . 2 Database Lockouts . | . . . . . . Manual 3 | . 1 . . . 2 Terminals 8 | . 1 . . . 7 Fabricators . | . . . . . . Repair Stations . | . . . . . . Recycling Units . | . . . . . . Scanalyzers . | . . . . . . Garrison Access . | . . . . . . Terminal Hacks 2 | . . . . . 2 Open Door 2 | . . . . . 2 Fabricator Hacks . | . . . . . . Repair Station Hacks . | . . . . . . Recycling Unit Hacks . | . . . . . . Scanalyzer . | . . . . . . Garrison Access Hacks . | . . . . . . Unauthorized Hacks . | . . . . . . Terminals . | . . . . . . Fabricators . | . . . . . . Repair Stations . | . . . . . . Recycling Units . | . . . . . . Scanalyzers . | . . . . . . Garrison Access . | . . . . . . Data Cores Recovered . | . . . . . . Used . | . . . . . . Hacking Detections 4 | . 1 . . . 3 Full Trace Events 2 | . . . . . 2 Feedback Events . | . . . . . . Feedback Blocked . | . . . . . . Robot Schematics Acquired . | . . . . . . Robots Built . | . . . . . . Authchips . | . . . . . . Time . | . . . . . . Total Robot Build Rating . | . . . . . . Part Schematics Acquired . | . . . . . . Parts Built . | . . . . . . Authchips . | . . . . . . Time . | . . . . . . Total Part Build Rating . | . . . . . . Parts Repaired . | . . . . . . Time . | . . . . . . Parts Recycled . | . . . . . . Recycled Matter . | . . . . . . Retrieved Matter . | . . . . . . Retrieved Components . | . . . . . . Parts Scanalyzed . | . . . . . . Part Schematics Acquired . | . . . . . . Parts Damaged . | . . . . . . Bothacking | -11 -10 -9 -9 -8 -8 ------------ Run | Yrd Mat Mat Min Mat Sto Used RIF Installer . | . . . . . . Robots Hacked . | . . . . . . Non-combat . | . . . . . . Combat . | . . . . . . Robot Hacks Applied . | . . . . . . Relay Couplers Released . | . . . . . . Fabnet Peak Effective % . | . . . . . . Robots Rewired . | . . . . . . Allies Hacked . | . . . . . . Hacks Repelled . | . . . . . . Allies | -11 -10 -9 -9 -8 -8 -------- Run | Yrd Mat Mat Min Mat Sto Total Allies . | . . . . . . Largest Group . | . . . . . . Highest-Rated Group . | . . . . . . Highest-Rated Ally . | . . . . . . Total Orders . | . . . . . . Ally Attacks . | . . . . . . Total Damage . | . . . . . . Kills . | . . . . . . Allies Corrupted . | . . . . . . Allies Melted . | . . . . . . Intel | -11 -10 -9 -9 -8 -8 ------- Run | Yrd Mat Mat Min Mat Sto Robot Analysis Total . | . . . . . . Derelict Logs Recovered . | . . . . . . Drone Launches . | . . . . . . Drone Recoveries . | . . . . . . Exploration | -11 -10 -9 -9 -8 -8 ------------- Run | Yrd Mat Mat Min Mat Sto Turns Passed 1539 | 120 537 575 19 37 251 Spaces Moved 1258 | 69 347 237 61 103 441 Core 23 | 18 . . . . 5 Treads 37 | . . 37 . . . Legs 152 | 51 101 . . . . Wheels 424 | . 246 178 . . . Hover . | . . . . . . Flight 622 | . . 22 61 103 436 Fastest Speed 31 | 50 120 31 31 31 31 Average Speed 89 | 136 138 145 31 31 35 Slowest Speed 480 | 200 190 480 31 31 120 Overloaded Moves . | . . . . . . Propulsion Burnouts . | . . . . . . Robots Hopped 1 | . . . . . 1 Cave-ins Triggered 1 | . . . . . 1 Exploration Rate (%) 31 | 6 47 21 21 19 76 Regions Visited 5 Branch Regions 2 Pre-discovered Areas . | . . . . . . Known Exits Taken . | . . . . . . Unknown Exits Taken 5 | 1 1 1 1 1 . Scrap Searched . | . . . . . . Spaces Dug 22 | . . . . . 22 Terrain Destroyed 29 | . . 4 . . 25 Melee . | . . . . . . Projectile 6 | . . . . . 6 AOE 23 | . . 4 . . 19 Terrain Rammed . | . . . . . . Walls Destroyed . | . . . . . . Machines Disabled . | . . . . . . Actions | -11 -10 -9 -9 -8 -8 --------- Run | Yrd Mat Mat Min Mat Sto Total 1544 | 85 385 402 60 107 505 Wait 98 | . 6 84 . . 8 Move 1251 | 68 346 236 60 102 439 Hop 1 | . . . . . 1 Pick Up 32 | 7 8 11 . 3 3 Fast Attach 15 | 5 3 3 . . 4 Attach 27 | 1 2 14 . 1 9 Detach 11 | . 4 2 . . 5 Swap 2 | . 2 . . . . Drop 21 | . 1 16 . 1 3 Fire 85 | 4 12 36 . . 33 Melee . | . . . . . . Ram 1 | . 1 . . . . Kick . | . . . . . . Crush . | . . . . . . Escape Stasis . | . . . . . . Rewire . | . . . . . . Trap . | . . . . . . Miscellaneous . | . . . . . . Route ------- -11/Scrapyard -10/Materials (discovered 2 exits: [*Mat] / [*Min]) -9/Materials -9/Mines -8/Materials -8/Storage History --------- Turn | Location | Event 23 | -11/Scrapyard | Discovered new exit (range 15) 121 | -11/Scrapyard | Entered Materials 317 | -10/Materials | Build established: Mutant 433 | -10/Materials | Discovered new exit (range 5) 506 | -10/Materials | Discovered new exit (range 6) 658 | -10/Materials | Entered another Materials area 658 | -9/Materials | Evolved 2 slots: Propulsion x2 1203 | -9/Materials | Lost 4 parts (3n1w) 1231 | -9/Materials | Discovered new exit (range 6) 1233 | -9/Materials | Entered Mines 1237 | -9/Mines | Discovered new exit (range 8) 1242 | -9/Mines | Met a Derelict bent on vengeance 1252 | -9/Mines | Entered Materials 1252 | -8/Materials | Evolved 2 slots: Power x1, Utility x1 1286 | -8/Materials | Discovered new exit (range 10) 1289 | -8/Materials | Entered Storage 1404 | -8/Storage | Crushed by falling debris 1447 | -8/Storage | Core integrity fell below 50% 1487 | -8/Storage | Lost 10 parts (2p6n2u) 1511 | -8/Storage | Core integrity fell below 20% 1538 | -8/Storage | Lost 3 parts (2n1w) 1540 | -8/Storage | Destroyed by G-47 Trooper via exploding Compression Vault Last Messages --------------- 01467_ S-10 Pest destroyed. 01470_ Acquired Flight Unit. 01485_ Acquired Flak Cannon. 01487_ Connecting with Terminal... 01487_ ALERT: Suspicious activity at Terminal S009. Dispatching Investigation squad. 01491_ Assault Cannon destroyed. 01492_ System corrupted: Component data lost. 01501_ Flight Unit destroyed. 01501_ G-47 Trooper knocked back. 01507_ Flight Unit destroyed. 01509_ Y-45 Defender destroyed. 01511_ G-47 Trooper knocked back. 01515_ G-47 Trooper destroyed. 01520_ Acquired 36 matter. 01530_ System corrupted: Matter fused (-10). 01531_ G-47 Trooper knocked back. 01537_ Y-45 Defender destroyed. 01539_ G-47 Trooper knocked back. 01540_ Compression Vault explodes. Map ----- +----------------------------------------------------+ | ?????????# """ # ################### | | ?????????# """ # | | ?????????# + | | ?????????# """ # | | ?????????# """ ###/################# | | ?????????# """ ??# ????????######## =% | | ?????????# ??# ! ??????# # | | ??????????#" "##???# ] ?????# # | | ??????????#"R"?????# #????# # | | ??????????#""??????# ! #????# """" # | | ???????????#???????# [ ###### """" # | | ???????????????##########+## # """" # | | ???????????????# T" %["""" # | | ???????????????# " /* # | | ???????????????# ### ###### # """" # | | ???????????????# ###/#######+### """" # | | ??????????##""## # #?# """" / | | ??????????#T # # #?# """" # | | ???????????# " #%""" """ #?# # | | ???????????##### " """ """ #?#### ###% | | ???????????????# # """ """ #????###?# | | ??????????"##### # #????????# | | ??????????" # #????????# | | ??????????" !g### #########????????# | | ??????????"#T##/#Y## ######???????????# | | ???????????#?# g*=@ ##??????????# | | ?????????????# ""Y ! "#??????????# | | ?????????????# "Y ]! T#??????????# | | ?????????????# "" "#??????????#### | | ?????????????# ##?????????????? | | ?????????????# #??????????????? | | ?????????????###############??????????????? | | | | | | | | | | | | | | | | | | | | | | | | | | | | | | | | | | | | | +----------------------------------------------------+ Best States ------------- Heat Dissipation 31 Energy Generation 15 Energy Capacity 275 Matter Stores 300 Matter Capacity 300 Sight Range 18 Robot Scan Range 14 Terrain Scan Density 10 Propulsion Shielding 33 Evasion (%) 63 Targeting Accuracy 6 Recoil Reduction 3 Item Schematics ----------------- None Robot Schematics ------------------ None Fabricated ------------ Nothing Alien Tech Used ----------------- None Achievements -------------- Unlikely Earthworm Challenges ------------ None Game ------ Seed ZhirovMomentumInitializer Manual? 0 Play Time 00:31:50 Cumulative 7.3 hours Start 2024.04.11 @ 13:35:39 End 2024.04.11 @ 14:05:07 Sessions 1 Manual Loads 0 Difficulty Rogue Special Mode None Game No. 5 Rogue 5 Adventurer 0 Explorer 0 Win Type - Total 0 Types 0/0/0/0/0/0/0/0/0 Lore% 9 Gallery% 12 Achievement% 11 Wizard Run 0 Options --------- Layout 1 ASCII 0 Keyboard 0 Movement Numpad Keybinds 0 Fullscreen 1 Font 16/SmallcapsGlow Map View 55x38 Zoom Use 0% Tactical HUD 1 Map Filters NONE Filters NONE Steam 1 RUN: 4110ecb0-ad44-4120-bae7-000f9e7f3787